lending/lending_fUSD_20251022
["ID","MTS","AMOUNT","RATE_DAILY","PERIOD"]
[392066399,1761135716787,-500.0,0.00043835,120]
[392066400,1761135716815,-500.0,0.00043835,120]
[392066401,1761135716840,-832.5,0.00043835,120]
[392066402,1761135716866,-500.0,0.00043835,120]
[392066403,1761135716893,-500.0,0.00043835,120]
[392066404,1761135716919,-159.49133097,0.00043835,120]
[392066405,1761135716950,-459.13,0.00043835,30]
[392066406,1761135716987,-500.0,0.00043835,120]
[392066407,1761135717012,-841.28,0.00043835,120]
[392066408,1761135717038,-500.0,0.00043835,120]
[392066409,1761135717063,-500.0,0.00043835,120]
[392066410,1761135717090,-500.0,0.00043835,120]
[392066411,1761135717117,-500.0,0.00043835,120]
[392066412,1761135717142,-790.48,0.00043835,120]
[392066413,1761135717168,-500.0,0.00043835,120]
[392066414,1761135717199,-500.0,0.00043835,120]
[392066415,1761135717228,-500.0,0.00043835,120]
[392066416,1761135717255,-219.64598642,0.00043835,120]
[392066417,1761135717281,-500.0,0.00043835,120]
[392066418,1761135717308,-500.0,0.00043835,120]
[392066419,1761135717333,-500.0,0.00043835,120]
[392066420,1761135717358,-500.0,0.00043835,120]
[392066421,1761135717383,-500.0,0.00043835,120]
[392066422,1761135717408,-500.0,0.00043835,120]
[392066423,1761135717434,-500.0,0.00043835,120]
[392066424,1761135717459,-500.0,0.00043835,120]
[392066425,1761135717484,-500.0,0.00043835,120]
[392066426,1761135717511,-500.0,0.00043835,120]
[392066427,1761135717538,-500.0,0.00043835,120]
[392066428,1761135717564,-473.33338183,0.00043835,120]
[392066429,1761135717588,-500.0,0.00043835,120]
[392066430,1761135717614,-500.0,0.00043835,120]
[392066431,1761135717643,-501.67,0.00043835,120]
[392066432,1761135717668,-500.0,0.00043835,120]
[392066433,1761135717693,-500.0,0.00043835,120]
[392066434,1761135717717,-500.0,0.00043835,120]
[392066435,1761135717743,-500.0,0.00043835,120]
[392066436,1761135717769,-500.0,0.00043835,120]
[392066437,1761135717793,-500.0,0.00043835,120]
[392066438,1761135717818,-500.0,0.00043835,120]
[392066439,1761135717843,-500.0,0.00043835,120]
[392066440,1761135717869,-500.0,0.00043835,120]
[392066441,1761135717894,-500.0,0.00043835,120]
[392066442,1761135717919,-500.0,0.00043835,120]
[392066443,1761135717944,-1510.11,0.00043835,120]
[392066444,1761135717969,-500.0,0.00043835,120]
[392066445,1761135717997,-3001.22,0.00043835,120]
[392066446,1761135718021,-500.0,0.00043835,120]
[392066447,1761135718045,-500.0,0.00043835,120]
[392066448,1761135718069,-570.1592609,0.00043835,120]
[392066449,1761135718094,-532.1757194,0.00043835,120]
[392066450,1761135718118,-541.75,0.00043835,120]
[392066451,1761135718143,-530.5378423,0.00043835,120]
[392066452,1761135718168,-237.92432479,0.00043835,120]
[392066453,1761135718198,-500.0,0.00043835,120]
[392066454,1761135718228,-500.0,0.00043835,120]
[392066455,1761135718264,-500.0,0.00043835,120]
[392066456,1761135718292,-173.45177795,0.00043835,120]
[392066457,1761135718319,-500.0,0.00043835,120]
[392066458,1761135718343,-500.0,0.00043835,120]
[392066459,1761135718368,-500.0,0.00043835,120]
[392066460,1761135718395,-500.0,0.00043835,120]
[392066461,1761135718420,-1119.79,0.00043835,120]
[392066462,1761135718445,-500.0,0.00043835,120]
[392066463,1761135718469,-500.0,0.00043835,120]
[392066464,1761135718494,-889.1,0.00043835,120]
[392066465,1761135718518,-500.0,0.00043835,120]
[392066466,1761135718543,-500.0,0.00043835,60]
[392066467,1761135718569,-500.0,0.00043835,120]
[392066468,1761135718595,-500.0,0.00043835,120]
[392066469,1761135718621,-500.0,0.00043835,120]
[392066470,1761135718647,-500.0,0.00043835,120]
[392066471,1761135718674,-500.0,0.00043835,120]
[392066472,1761135718699,-647.57886903,0.00043835,120]
[392066473,1761135718724,-500.0,0.00043835,120]
[392066474,1761135718749,-640.16,0.00043835,120]
[392066475,1761135718773,-257.77188077,0.00043835,120]
[392066476,1761135718797,-500.0,0.00043835,120]
[392066477,1761135718821,-500.0,0.00043835,120]
[392066478,1761135718845,-500.0,0.00043835,120]
[392066479,1761135718871,-500.0,0.00043835,120]
[392066480,1761135718896,-617.33282192,0.00043835,120]
[392066481,1761135718921,-500.0,0.00043835,120]
[392066482,1761135718945,-500.0,0.00043835,120]
[392066483,1761135718970,-500.0,0.00043835,120]
[392066484,1761135718995,-500.0,0.00043835,120]
[392066485,1761135719020,-1410.88,0.00043835,120]
[392066486,1761135719045,-504.95725868,0.00043835,30]
[392066487,1761135719069,-500.0,0.00043835,120]
[392066488,1761135719095,-2240.48,0.00043835,120]
[392066489,1761135719121,-500.0,0.00043835,120]
[392066490,1761135719148,-507.43323689,0.00043835,120]
[392066491,1761135719178,-1153.17,0.00043835,120]
[392066492,1761135719205,-2542.52,0.00043835,120]
[392066493,1761135719229,-500.0,0.00043835,120]
[392066494,1761135719254,-500.0,0.00043835,120]
[392066495,1761135719423,-500.0,0.00043835,120]
[392066496,1761135719449,-151.58425575,0.00043835,120]
[392066497,1761135719475,-500.0,0.00043835,120]
[392066498,1761135719503,-500.0,0.00043835,120]
[392066499,1761135719530,-170.51643615,0.00043835,120]
[392066500,1761135719555,-2219.4,0.00043835,120]
[392066501,1761135719580,-500.0,0.00043835,120]
[392066502,1761135719608,-1268.35,0.00043835,120]
[392066503,1761135719632,-500.0,0.00043835,120]
[392066504,1761135719655,-509.40503072,0.00043835,120]
[392066505,1761135719679,-500.0,0.00043835,120]
[392066506,1761135719705,-500.0,0.00043835,120]
[392066507,1761135719730,-500.0,0.00043835,120]
[392066508,1761135719755,-836.73,0.00043835,120]
[392066509,1761135719781,-356.28060997,0.00043835,120]
[392066510,1761135719808,-1624.39,0.00043835,120]
[392066511,1761135719832,-508.13344279,0.00043835,120]
[392066512,1761135719859,-543.93555675,0.00043835,120]
[392066513,1761135719885,-500.0,0.00043835,120]
[392066514,1761135719910,-629.63,0.00043835,120]
[392066515,1761135719935,-500.0,0.00043835,120]
[392066516,1761135719960,-500.0,0.00043835,120]
[392066517,1761135719986,-500.0,0.00043835,120]
[392066518,1761135720011,-464.09594594,0.00043835,120]
[392066519,1761135720038,-500.0,0.00043835,120]
[392066520,1761135720062,-546.67368461,0.00043835,120]
[392066521,1761135720088,-508.39240617,0.00043835,120]
[392066522,1761135720113,-500.0,0.00043835,120]
[392066523,1761135720139,-500.0,0.00043835,120]
[392066524,1761135720166,-500.0,0.00043835,120]
[392066525,1761135720192,-510.95250522,0.00043835,120]
[392066526,1761135720220,-500.0,0.00043835,120]
[392066527,1761135720245,-500.0,0.00043835,120]
[392066528,1761135720272,-500.0,0.00043835,120]
[392066529,1761135720297,-600.0,0.00043835,120]
[392066530,1761135720323,-510.89918718,0.00043835,120]
[392066531,1761135720349,-500.0,0.00043835,120]
[392066532,1761135720375,-500.0,0.00043835,120]
[392066533,1761135720400,-427.84683615,0.00043835,120]
[392066534,1761135720428,-500.0,0.00043835,120]
[392066535,1761135720454,-500.0,0.00043835,120]
[392066536,1761135720481,-514.83854684,0.00043835,120]
[392066537,1761135720508,-516.52078211,0.00043835,120]
[392066538,1761135720533,-500.0,0.00043835,120]
[392066539,1761135720558,-500.0,0.00043835,120]
[392066540,1761135720584,-307.80199844,0.00043835,120]
[392066541,1761135720609,-505.26132327,0.00043835,120]
[392066542,1761135720634,-500.0,0.00043835,120]
[392066543,1761135720661,-500.0,0.00043835,120]
[392066544,1761135720688,-7704.99,0.00043835,120]
[392066545,1761135720715,-668.31,0.00043835,120]
[392066546,1761135720741,-500.0,0.00043835,120]
[392066547,1761135720766,-500.0,0.00043835,120]
[392066548,1761135720792,-500.0,0.00043835,120]
[392066549,1761135720817,-504.50248703,0.00043835,120]
[392066550,1761135720842,-500.0,0.00043835,120]
[392066551,1761135720867,-500.0,0.00043835,120]
[392066552,1761135720892,-500.0,0.00043835,120]
[392066553,1761135720917,-500.0,0.00043835,120]
[392066554,1761135720942,-500.0,0.00043835,120]
[392066555,1761135720967,-500.0,0.00043835,120]
[392066556,1761135720992,-500.0,0.00043835,120]
[392066557,1761135721019,-500.0,0.00043835,120]
[392066558,1761135721045,-622.55096481,0.00043835,120]
[392066559,1761135721072,-500.0,0.00043835,120]
[392066560,1761135721096,-500.0,0.00043835,120]
[392066561,1761135721121,-500.0,0.00043835,120]
[392066562,1761135721146,-500.0,0.00043835,120]
[392066563,1761135721174,-500.0,0.00043835,120]
[392066564,1761135721200,-500.0,0.00043835,120]
[392066565,1761135721226,-500.0,0.00043835,120]
[392066566,1761135721252,-500.0,0.00043835,120]
[392066567,1761135721277,-500.0,0.00043835,120]
[392066568,1761135721345,-500.0,0.00043835,120]
[392066569,1761135721370,-957.28,0.00043835,120]
[392066570,1761135721396,-500.0,0.00043835,120]
[392066571,1761135721422,-508.96196287,0.00043835,120]
[392066572,1761135721447,-500.0,0.00043835,120]
[392066573,1761135721469,-500.0,0.00043835,120]
[392066574,1761135721493,-502.99563199,0.00043835,60]
[392066575,1761135721516,-500.0,0.00043835,120]
[392066576,1761135721540,-500.0,0.00043835,120]
[392066577,1761135721564,-500.0,0.00043835,120]
[392066578,1761135721590,-2117.82,0.00043835,120]
[392066579,1761135721616,-500.0,0.00043835,120]
[392066580,1761135721643,-500.0,0.00043835,120]
[392066581,1761135721668,-500.0,0.00043835,120]
[392066582,1761135721693,-500.0,0.00043835,120]
[392066583,1761135721716,-500.0,0.00043835,120]
[392066584,1761135721740,-500.0,0.00043835,120]
[392066585,1761135721764,-500.0,0.00043835,120]
[392066586,1761135721787,-500.0,0.00043835,120]
[392066587,1761135721811,-179.34060805,0.00043835,120]
[392066588,1761135721836,-336.12537246,0.00043835,120]
[392066589,1761135721860,-500.0,0.00043835,120]
[392066590,1761135721884,-1617.27,0.00043835,120]
[392066591,1761135721908,-500.0,0.00043835,120]
[392066592,1761135721933,-500.0,0.00043835,120]
[392066593,1761135721959,-500.0,0.00043835,120]
[392066594,1761135721985,-500.0,0.00043835,120]
[392066595,1761135722011,-500.0,0.00043835,120]
[392066596,1761135722034,-500.0,0.00043835,120]
[392066597,1761135722060,-500.0,0.00043835,120]
[392066598,1761135722085,-500.0,0.00043835,120]
[392066599,1761135722110,-500.0,0.00043835,120]
[392066600,1761135722135,-1774.5,0.00043835,60]
[392066601,1761135722159,-500.0,0.00043835,120]
[392066602,1761135722187,-500.0,0.00043835,120]
[392066603,1761135722213,-1668.4,0.00043835,120]
[392066604,1761135722236,-500.0,0.00043835,120]
[392066605,1761135722261,-390.67,0.00043835,120]
[392066606,1761135722285,-500.0,0.00043835,120]
[392066607,1761135722308,-500.0,0.00043835,120]
[392066608,1761135722332,-500.0,0.00043835,120]
[392066609,1761135722356,-1019.82,0.00043835,120]
[392066610,1761135722383,-665.8,0.00043835,120]
[392066611,1761135722410,-556.93614117,0.00043835,120]
[392066612,1761135722435,-511.64948965,0.00043835,120]
[392066613,1761135722458,-500.0,0.00043835,120]
[392066614,1761135722480,-514.92112311,0.00043835,120]
[392066615,1761135722503,-500.0,0.00043835,120]
[392066616,1761135722527,-500.0,0.00043835,120]
[392066617,1761135722550,-500.0,0.00043835,120]
[392066618,1761135722574,-614.58010305,0.00043835,120]
[392066619,1761135722597,-500.0,0.00043835,120]
[392066620,1761135722622,-500.0,0.00043835,120]
[392066621,1761135722648,-500.0,0.00043835,120]
[392066622,1761135722674,-500.0,0.00043835,120]
[392066623,1761135722698,-500.0,0.00043835,120]
[392066624,1761135722722,-243.12978214,0.00043835,120]
[392066625,1761135722747,-500.74077268,0.00043835,120]
[392066626,1761135722771,-1153.4,0.00043835,120]
[392066627,1761135722795,-500.0,0.00043835,120]
[392066628,1761135722818,-1400.05,0.00043835,120]
[392066629,1761135722842,-280.74256472,0.00043835,120]
[392066630,1761135722865,-500.0,0.00043835,120]
[392066631,1761135722890,-500.0,0.00043835,120]
[392066632,1761135722915,-500.0,0.00043835,120]
[392066633,1761135722939,-509.3981555,0.00043835,120]
[392066634,1761135722964,-500.0,0.00043835,120]
[392066635,1761135722989,-911.59,0.00043835,120]
[392066636,1761135723016,-500.0,0.00043835,120]
[392066637,1761135723044,-774.69,0.00043835,120]
[392066638,1761135723069,-565.62,0.00043835,120]
[392066639,1761135723094,-504.07034596,0.00043835,120]
[392066640,1761135723119,-500.0,0.00043835,120]
[392066641,1761135723148,-500.0,0.00043835,120]
[392066642,1761135723175,-500.0,0.00043835,120]
[392066643,1761135723200,-500.0,0.00043835,120]
[392066644,1761135723225,-500.0,0.00043835,120]
[392066645,1761135723250,-442.05475015,0.00043835,120]
[392066646,1761135723274,-502.8585372,0.00043835,120]
[392066647,1761135723299,-500.0,0.00043835,120]
[392066648,1761135723324,-500.0,0.00043835,120]
[392066649,1761135723348,-649.37,0.00043835,30]
[392066650,1761135723375,-1278.06,0.00043835,120]
[392066651,1761135723404,-500.0,0.00043835,120]
[392066652,1761135723430,-500.0,0.00043835,120]
[392066653,1761135723455,-500.0,0.00043835,120]
[392066654,1761135723479,-500.0,0.00043835,120]
[392066655,1761135723504,-500.0,0.00043835,30]
[392066656,1761135723531,-500.0,0.00043835,120]
[392066657,1761135723556,-500.0,0.00043835,120]
[392066658,1761135723581,-500.0,0.00043835,120]
[392066659,1761135723607,-500.0,0.00043835,120]
[392066660,1761135723635,-500.0,0.00043835,120]
[392066661,1761135723660,-500.0,0.00043835,120]
[392066662,1761135723685,-500.0,0.00043835,120]
[392066663,1761135723712,-500.0,0.00043835,120]
[392066664,1761135723739,-1013.61,0.00043835,120]
[392066665,1761135723765,-959.74,0.00043835,120]
[392066666,1761135723793,-500.0,0.00043835,120]
[392066667,1761135723818,-500.0,0.00043835,120]
[392066668,1761135723843,-508.30629256,0.00043835,120]
[392066669,1761135723867,-500.0,0.00043835,120]
[392066670,1761135723894,-696.55,0.00043835,30]
[392066671,1761135723920,-998.52164579,0.00043877,120]
[392066672,1761135723945,-1000.0,0.0004388,120]
[392066673,1761135723969,-173.56,0.000439,30]
[392066674,1761135723995,-500.0,0.00043952,60]
[392066675,1761135724141,-500.0,0.00043952,60]
[392066676,1761135724168,-151.0,0.00043977,120]
[392066677,1761135724200,-588.74,0.0004398,120]
[392066678,1761135724228,-151.0,0.00043987,120]
[392066679,1761135724254,-151.0,0.00043987,120]
[392066680,1761135724281,-679.44,0.00043989,120]
[392066681,1761135724307,-1000.0,0.00043989,30]
[392066682,1761135724333,-656.06,0.00043989,120]
[392066683,1761135724360,-500.0,0.00043989,120]
[392066684,1761135724387,-500.0,0.00043989,120]
[392066685,1761135724414,-1999.0,0.00043989,120]
[392066686,1761135724441,-993.18,0.00043989,120]
[392066687,1761135724467,-1091.5,0.00043989,120]
[392066688,1761135724494,-1597.5,0.00043989,120]
[392066689,1761135724519,-500.0,0.00043989,120]
[392066690,1761135724545,-440.32691189,0.00043989,120]
[392066691,1761135724571,-500.0,0.00043989,120]
[392066692,1761135724597,-423.25902367,0.00043989,120]
[392066693,1761135724622,-500.0,0.00043989,120]
[392066694,1761135724649,-500.0,0.00043989,120]
[392066695,1761135724673,-500.0,0.00043989,120]
[392066696,1761135724698,-644.61974958,0.00043989,120]
[392066697,1761135724724,-500.0,0.00043989,120]
[392066698,1761135724749,-272.69295499,0.00043989,120]
[392066699,1761135724774,-502.93866489,0.00043989,120]
[392066700,1761135724799,-500.0,0.00043989,120]
[392066701,1761135724824,-500.0,0.00043989,120]
[392066702,1761135724849,-184.64364926,0.00043989,120]
[392066703,1761135724875,-1876.92,0.00043989,120]
[392066704,1761135724903,-500.0,0.00043989,120]
[392066705,1761135724932,-563.75,0.00043989,120]
[392066706,1761135724958,-1978.48,0.00043989,120]
[392066707,1761135724985,-500.0,0.00043989,120]
[392066708,1761135725012,-1294.64,0.00043989,120]
[392066709,1761135725040,-500.0,0.00043989,120]
[392066710,1761135725066,-500.0,0.00043989,120]
[392066711,1761135725092,-500.0,0.00043989,120]
[392066712,1761135725118,-579.91710363,0.00043989,120]
[392066713,1761135725145,-500.0,0.00043989,120]
[392066714,1761135725174,-855.17,0.00043989,120]
[392066715,1761135725199,-551.99571622,0.00043989,120]
[392066716,1761135725225,-520.34996924,0.00043989,120]
[392066717,1761135725251,-925.88,0.00043989,120]
[392066718,1761135725277,-3274.0,0.00043989,120]
[392066719,1761135725301,-500.0,0.00043989,120]
[392066720,1761135725325,-500.0,0.00043989,120]
[392066721,1761135725350,-500.0,0.00043989,120]
[392066722,1761135725374,-500.0,0.00043989,120]
[392066723,1761135725400,-500.0,0.00043989,120]
[392066724,1761135725423,-500.0,0.00043989,120]
[392066725,1761135725447,-4072.57,0.00043989,30]
[392066726,1761135725470,-1136.23,0.00043989,120]
[392066727,1761135725494,-1000.0,0.00043989,120]
[392066728,1761135725519,-1659.24,0.00043989,120]
[392066729,1761135725543,-1868.1,0.00043989,120]
[392066730,1761135725567,-500.0,0.00043989,120]
[392066731,1761135725591,-500.0,0.00043989,120]
[392066732,1761135725616,-500.0,0.00043989,120]
[392066733,1761135725641,-500.0,0.00043989,120]
[392066734,1761135725665,-532.02358256,0.00043989,120]
[392066735,1761135725690,-1334.57,0.00043989,120]
[392066736,1761135725715,-500.0,0.00043989,120]
[392066737,1761135725740,-500.0,0.00043989,120]
[392066738,1761135725765,-500.0,0.00043989,120]
[392066739,1761135725790,-500.0,0.00043989,120]
[392066740,1761135725814,-2214669.1564416,0.0004399,120]
[392066741,1761135725838,-315.0,0.00044,30]
[392066742,1761135725862,-300.0,0.00044,120]
[392066743,1761135725889,-2097.225788,0.00044,120]
[392066744,1761135725913,-794.65384724,0.00044,30]
[392066745,1761135725938,-1459.2592707,0.00044,30]
[392066746,1761135725964,-150.0,0.00044,30]
[392066747,1761135725989,-150.0,0.00044,30]
[392066748,1761135726015,-150.0,0.00044,30]
[392066749,1761135726040,-150.0,0.00044,30]
[392066750,1761135726063,-150.0,0.00044,30]
[392066751,1761135726088,-150.0,0.00044,30]
[392066752,1761135726114,-150.0,0.00044,30]
[392066753,1761135726140,-150.0,0.00044,30]
[392066754,1761135726164,-150.0,0.00044,30]
[392066755,1761135726193,-150.0,0.00044,30]
[392066756,1761135726218,-150.0,0.00044,30]
[392066757,1761135726244,-150.0,0.00044,30]
[392066758,1761135726269,-150.0,0.000441,30]
[392066759,1761135726295,-150.0,0.000441,30]
[392066760,1761135726320,-207.4,0.00044108,30]
[392066761,1761135726348,-215.0738,0.00044108,60]
[392066762,1761135726375,-500.0,0.00044109,120]
[392066763,1761135726400,-853.63,0.00044109,120]
[392066764,1761135726425,-500.0,0.00044109,120]
[392066765,1761135726671,-1060.64,0.00044109,120]
[392066766,1761135726697,-500.0,0.00044109,120]
[392066767,1761135726722,-500.0,0.00044109,120]
[392066768,1761135726750,-1341.33,0.00044109,120]
[392066769,1761135726775,-500.0,0.00044109,120]
[392066770,1761135726799,-500.0,0.00044109,120]
[392066771,1761135726823,-500.0,0.00044109,120]
[392066772,1761135726848,-1495.03,0.00044109,120]
[392066773,1761135726872,-500.0,0.00044109,120]
[392066774,1761135726899,-500.0,0.00044109,120]
[392066775,1761135726924,-936.64,0.00044109,120]
[392066776,1761135726949,-500.0,0.00044109,120]
[392066777,1761135726974,-1086.29,0.00044109,120]
[392066778,1761135727000,-1664.75,0.00044109,120]
[392066779,1761135727026,-840.86,0.00044109,120]
[392066780,1761135727052,-500.0,0.00044109,120]
[392066781,1761135727077,-500.0,0.00044109,120]
[392066782,1761135727102,-500.0,0.00044109,120]
[392066783,1761135727127,-1662.58,0.00044109,120]
[392066784,1761135727152,-1687.46,0.00044109,120]
[392066785,1761135727183,-500.0,0.00044109,120]
[392066786,1761135727209,-500.0,0.00044109,120]
[392066787,1761135727236,-500.0,0.00044109,120]
[392066788,1761135727262,-500.0,0.00044109,120]
[392066789,1761135727287,-500.0,0.00044109,120]
[392066790,1761135727314,-1314.8,0.00044109,120]
[392066791,1761135727342,-1018.88,0.00044109,120]
[392066792,1761135727368,-940.87,0.00044109,120]
[392066793,1761135727394,-500.0,0.00044109,120]
[392066794,1761135727420,-500.0,0.00044109,120]
[392066795,1761135727445,-500.0,0.00044109,120]
[392066796,1761135727472,-1340.18,0.00044109,120]
[392066797,1761135727497,-1306.15,0.00044109,120]
[392066798,1761135727522,-332.85374282,0.00044109,120]
[392066799,1761135727549,-500.0,0.00044109,120]
[392066800,1761135727575,-1019.91,0.00044109,120]
[392066801,1761135727601,-1857.86,0.00044109,120]
[392066802,1761135727626,-477.91,0.00044109,120]
[392066803,1761135727652,-1046.62,0.00044109,120]
[392066804,1761135727678,-1524.64,0.00044109,120]
[392066805,1761135727702,-500.0,0.00044109,120]
[392066806,1761135727727,-500.0,0.00044109,120]
[392066807,1761135727750,-500.0,0.00044109,120]
[392066808,1761135727775,-500.0,0.00044109,120]
[392066809,1761135727799,-500.0,0.00044109,120]
[392066810,1761135727826,-1306.99,0.00044109,120]
[392066811,1761135727853,-500.0,0.00044109,60]
[392066812,1761135727879,-483.0113384,0.00044109,120]
[392066813,1761135727905,-943.68,0.00044109,120]
[392066814,1761135727931,-500.0,0.00044109,120]
[392066815,1761135727958,-500.0,0.00044109,120]
[392066816,1761135727984,-1238.79,0.00044109,120]
[392066817,1761135728011,-326.00236383,0.00044109,120]
[392066818,1761135728038,-500.0,0.00044109,120]
[392066819,1761135728064,-500.0,0.00044109,120]
[392066820,1761135728091,-500.0,0.00044109,120]
[392066821,1761135728117,-500.0,0.00044109,120]
[392066822,1761135728144,-1070.04,0.00044109,120]
[392066823,1761135728172,-569.93605728,0.00044109,120]
[392066824,1761135728198,-981.17,0.00044109,120]
[392066825,1761135728225,-813.58,0.00044109,120]
[392066826,1761135728251,-500.0,0.00044109,120]
[392066827,1761135728278,-465.4318089,0.00044109,120]
[392066828,1761135728304,-500.0,0.00044109,120]
[392066829,1761135728329,-2000.86,0.00044109,120]
[392066830,1761135728354,-563.95930871,0.00044109,120]
[392066831,1761135728380,-500.0,0.00044109,120]
[392066832,1761135728408,-1065.48,0.00044109,120]
[392066833,1761135728434,-500.0,0.00044109,120]
[392066834,1761135728460,-500.0,0.00044109,120]
[392066835,1761135728487,-548.57,0.00044109,120]
[392066836,1761135728515,-500.0,0.00044109,120]
[392066837,1761135728540,-500.0,0.00044109,120]
[392066838,1761135728566,-1860.85,0.00044109,120]
[392066839,1761135728593,-500.0,0.00044109,120]
[392066840,1761135728620,-346.01885356,0.00044109,120]
[392066841,1761135728646,-500.0,0.00044109,120]
[392066842,1761135728673,-500.0,0.00044109,120]
[392066843,1761135728699,-500.0,0.00044109,120]
[392066844,1761135728724,-500.0,0.00044109,120]
[392066845,1761135728750,-652.14,0.00044109,120]
[392066846,1761135728776,-500.0,0.00044109,120]
[392066847,1761135728802,-500.0,0.00044109,120]
[392066848,1761135728828,-500.0,0.00044109,120]
[392066849,1761135728853,-276.39716753,0.00044109,120]
[392066850,1761135728879,-500.0,0.00044109,120]
[392066851,1761135728905,-500.0,0.00044109,120]
[392066852,1761135728930,-500.0,0.00044109,120]
[392066853,1761135728956,-500.0,0.00044109,120]
[392066854,1761135728981,-500.0,0.00044109,120]
[392066855,1761135729006,-1160.59,0.00044109,120]
[392066856,1761135729033,-500.0,0.00044109,120]
[392066857,1761135729060,-500.0,0.00044109,120]
[392066858,1761135729088,-1155.13,0.00044109,120]
[392066859,1761135729115,-500.0,0.00044109,120]
[392066860,1761135729145,-500.0,0.00044109,120]
[392066861,1761135729178,-500.0,0.00044109,120]
[392066862,1761135729205,-500.0,0.00044109,120]
[392066863,1761135729233,-500.0,0.00044109,120]
[392066864,1761135729261,-500.0,0.00044109,120]
[392066865,1761135729288,-500.0,0.00044109,120]
[392066866,1761135729314,-630.1,0.00044109,120]
[392066867,1761135729342,-501.88,0.00044109,120]
[392066868,1761135729370,-500.0,0.00044109,120]
[392066869,1761135729397,-500.0,0.00044109,120]
[392066870,1761135729423,-1839.42,0.00044109,120]
[392066871,1761135729453,-500.0,0.00044109,120]
[392066872,1761135729486,-500.0,0.00044109,120]
[392066873,1761135729517,-1741.81,0.00044109,120]
[392066874,1761135729544,-500.0,0.00044109,120]
[392066875,1761135729575,-500.0,0.00044109,120]
[392066876,1761135729604,-2199.46,0.00044109,120]
[392066877,1761135729634,-500.0,0.00044109,120]
[392066878,1761135729666,-500.0,0.00044109,120]
[392066879,1761135729696,-832.5,0.00044109,120]
[392066880,1761135729726,-500.0,0.00044109,120]
[392066881,1761135729753,-500.0,0.00044109,120]
[392066882,1761135729783,-500.0,0.00044109,120]
[392066883,1761135729814,-841.28,0.00044109,120]
[392066884,1761135729843,-500.0,0.00044109,120]
[392066885,1761135729872,-457.49154673,0.00044109,120]
[392066886,1761135729904,-500.0,0.00044109,120]
[392066887,1761135729935,-500.0,0.00044109,120]
[392066888,1761135729966,-604.8946529,0.00044109,120]
[392066889,1761135729995,-790.48,0.00044109,120]
[392066890,1761135730025,-500.0,0.00044109,120]
[392066891,1761135730056,-500.0,0.00044109,120]
[392066892,1761135730085,-500.0,0.00044109,120]
[392066893,1761135730115,-500.0,0.00044109,120]
[392066894,1761135730144,-500.0,0.00044109,120]
[392066895,1761135730175,-500.0,0.00044109,120]
[392066896,1761135730205,-500.0,0.00044109,120]
[392066897,1761135730235,-500.0,0.00044109,120]
[392066898,1761135730265,-500.0,0.00044109,120]